bitfinex-derivatives/quotes_SOLF0:USTF0_20250625
["timestamp","ask_amount","ask_price","bid_price","bid_amount"]
[1750883846890,42.9984,144.89,144.86,6.8992]
[1750883847487,42.9984,144.89,144.82,40.46388512]
[1750883847488,36.1,144.89,144.82,40.46388512]
[1750883847886,36.1,144.89,144.83,2.4364]
[1750883850186,6.8993,144.87,144.85,6.8998]
[1750883851396,6.8993,144.87,144.84,6.9003]
[1750883853594,6.8993,144.87,144.85,6.8999]
[1750883854098,6.8993,144.87,144.84,6.9003]
[1750883854297,6.8993,144.87,144.8,4.36388512]
[1750883854598,6.8993,144.87,144.84,6.9002]
[1750883854796,4.36388512,144.88,144.8,4.36388512]
[1750883854994,4.36388512,144.86,144.79,36.1]
[1750883855191,36.1,144.85,144.79,36.1]
[1750883855691,6.9012,144.83,144.8,6.902]
[1750883856296,6.9012,144.83,144.81,6.9018]
[1750883856998,6.9012,144.83,144.8,6.902]
[1750883857201,40.46388512,144.85,144.77,11.51248512]
[1750883857599,41.0297888,144.85,144.77,11.51248512]
[1750883857899,36.1,144.85,144.79,4.36388512]
[1750883858098,36.1,144.85,144.82,6.9012]
[1750883858402,43.0002,144.85,144.82,6.9012]
[1750883860993,4.36388512,144.87,144.81,4.36388512]
[1750883861203,36.1,144.88,144.81,4.36388512]
[1750883861508,6.8993,144.87,144.81,4.36388512]
[1750883862904,36.1,144.88,144.8,36.1]
[1750883863098,4.36388512,144.85,144.77,47.61248512]
[1750883863293,5.58262585,144.87,144.79,4.36388512]
[1750883863602,6.9001,144.85,144.79,4.36388512]
[1750883863901,6.9001,144.85,144.83,6.9009]
[1750883864402,6.8997,144.86,144.83,6.9009]
[1750883865405,6.8992,144.87,144.85,6.8999]
[1750883865705,4.9533173,144.86,144.85,6.8999]
[1750883865895,6.8992,144.87,144.84,6.9003]
[1750883866099,11.85326702,144.86,144.84,6.9003]
[1750883866304,6.8996,144.86,144.84,6.9003]
[1750883867204,6.8993,144.87,144.84,6.9003]
[1750883867701,6.8993,144.87,144.85,6.9]
[1750883868605,6.8993,144.87,144.84,6.9003]
[1750883877513,4.96148164,144.86,144.83,6.9008]
[1750883877707,6.8993,144.87,144.83,6.9008]
[1750883877904,9.56684528,144.86,144.83,6.9008]
[1750883878105,6.8996,144.86,144.83,6.9008]
[1750883878415,40.46388512,144.88,144.81,4.36388512]
[1750883878615,16.48633043,144.87,144.81,4.36388512]
[1750883878806,6.8993,144.87,144.81,4.36388512]
[1750883879115,6.8993,144.87,144.84,6.9002]
[1750883880316,6.8993,144.87,144.85,6.9]
[1750883882819,4.98194014,144.86,144.85,6.9]
[1750883883214,4.98194014,144.86,144.84,6.9002]
[1750883883518,40.46388512,144.88,144.84,6.9002]
[1750883883717,9.58751151,144.87,144.85,6.8999]
[1750883884016,40.46388512,144.88,144.85,6.8999]
[1750883884217,9.58750538,144.87,144.86,6.8993]
[1750883884419,4.98136711,144.87,144.86,6.8993]
[1750883884621,6.8984,144.89,144.83,4.36439578]
[1750883884820,6.8984,144.89,144.87,6.8988]
[1750883885318,6.8986,144.88,144.86,6.8993]
[1750883885515,4.36320415,144.89,144.83,2.2316]
[1750883885819,6.8995,144.87,144.84,6.9003]
[1750883886213,6.8995,144.87,144.81,4.36320415]
[1750883887214,6.8995,144.87,144.84,6.9002]
[1750883887619,6.8996,144.86,144.84,6.9002]
[1750883889518,6.8996,144.86,144.81,4.36320415]
[1750883889519,6.8996,144.86,144.83,6.9007]
[1750883889724,4.36320415,144.89,144.83,6.9007]
[1750883889725,6.9001,144.85,144.83,6.9007]
[1750883890321,4.36320415,144.85,144.8,35.7]
[1750883890623,4.36320415,144.85,144.79,2.2316]
[1750883891630,4.36320415,144.83,144.77,35.7]
[1750883892126,6.9018,144.82,144.79,6.9026]
[1750883893227,4.36320415,144.83,144.78,6.9031]
[1750883893425,4.36320415,144.79,144.74,50.5748702]
[1750883893628,4.36320415,144.77,144.71,48.3106702]
[1750883894024,4.36320415,144.77,144.71,35.7]
[1750883894522,11.89507233,144.76,144.71,35.7]
[1750883894727,6.9046,144.76,144.71,35.7]
[1750883895225,4.36320415,144.75,144.69,2.4138]
[1750883895421,4.36320415,144.75,144.68,50.6532702]
[1750883895729,4.36320415,144.75,144.68,38.0426]
[1750883895914,6.9055,144.74,144.71,6.9064]
[1750883896115,40.06320415,144.75,144.68,38.0426]
[1750883896522,46.96820415,144.75,144.71,6.9063]
[1750883896714,46.96820415,144.75,144.68,38.0426]
[1750883896919,40.06320415,144.75,144.68,38.0426]
[1750883897119,40.06320415,144.75,144.72,6.9059]
[1750883897322,40.06320415,144.75,144.68,38.0426]
[1750883898426,46.96820415,144.75,144.72,6.9059]
[1750883899629,40.06320415,144.75,144.73,6.9057]
[1750883900530,46.96800415,144.75,144.68,38.0426]
[1750883901938,46.96800415,144.75,144.72,6.9059]
[1750883903528,6.9053,144.74,144.71,6.9065]
[1750883903730,4.36320415,144.73,144.66,2.3645]
[1750883904129,4.36320415,144.73,144.69,6.9074]
[1750883904327,4.36320415,144.71,144.65,35.38]
[1750883904528,46.65010415,144.71,144.68,6.908]
[1750883904832,39.74320415,144.71,144.65,35.38]
[1750883905229,39.74320415,144.71,144.69,6.9073]
[1750883905935,46.65020415,144.71,144.68,6.9079]
[1750883906335,46.65020415,144.71,144.65,35.38]
[1750883906336,39.74320415,144.71,144.65,35.38]
[1750883906532,4.36320415,144.69,144.62,37.752]
[1750883906932,6.9084,144.68,144.65,6.9093]
[1750883908032,6.9084,144.68,144.6,4.7257]
[1750883908033,39.74320415,144.67,144.6,2.4179]
[1750883908226,4.36320415,144.65,144.59,35.38]
[1750883908839,11.27310415,144.65,144.61,6.9111]
[1750883909035,4.36320415,144.63,144.56,40.1143]
[1750883909437,4.36320415,144.63,144.6,6.9116]
[1750883910231,11.27390415,144.63,144.6,6.9116]
[1750883910438,4.36320415,144.63,144.56,40.1143]
[1750883910744,9.02900415,144.65,144.57,4.36320415]
[1750883911040,4.6658,144.65,144.57,4.36320415]
[1750883911230,9.02900415,144.65,144.57,4.36320415]
[1750883911433,15.93860415,144.65,144.62,6.9107]
[1750883912441,6.9101,144.64,144.62,6.9107]
[1750883912629,6.9101,144.64,144.61,6.9112]
[1750883913443,6.9101,144.64,144.57,4.36320415]
[1750883913444,15.93880415,144.65,144.62,6.9109]
[1750883915148,35.4,144.69,144.62,4.37615461]
[1750883915642,42.308,144.69,144.66,6.9088]
[1750883915843,35.4,144.69,144.61,4.37615461]
[1750883916043,6.9091,144.66,144.63,6.9102]
[1750883916746,11.28525461,144.66,144.63,6.9102]
[1750883918446,4.37615461,144.66,144.63,6.9102]
[1750883918746,4.37615461,144.68,144.64,6.9098]
[1750883919137,6.9086,144.67,144.64,6.9098]
[1750883920146,6.9086,144.67,144.6,35.4]
[1750883920147,35.4,144.69,144.61,4.37615461]
[1750883920750,35.4,144.69,144.63,4.37615461]
[1750883921133,2.2569,144.71,144.65,4.37615461]
[1750883921745,9.1639,144.71,144.65,4.37615461]
[1750883923242,9.1639,144.71,144.69,6.9076]
[1750883923445,9.1639,144.71,144.65,4.37615461]
[1750883923644,2.2569,144.71,144.65,4.37615461]
[1750883923849,2.2569,144.71,144.69,6.9073]
[1750883924240,9.1638,144.71,144.69,6.9073]
[1750883924440,2.2569,144.71,144.68,6.9079]
[1750883925249,2.2569,144.71,144.65,4.37615461]
[1750883925546,9.1638,144.71,144.65,4.37615461]
[1750883925943,20.75,144.86,144.67,4.37292035]
[1750883926150,6.82322035,144.8,144.71,4.37292035]
[1750883926353,37.8503,144.8,144.73,4.36931046]
[1750883926651,37.8503,144.8,144.71,35.4]
[1750883926846,4.36931046,144.79,144.71,35.4]
[1750883927055,11.27351046,144.77,144.74,6.9052]
[1750883929549,6.9044,144.76,144.73,6.9056]
[1750883929739,42.3044,144.76,144.73,6.9056]
[1750883929940,35.4,144.76,144.68,44.52911046]
[1750883930143,6.9049,144.75,144.72,6.9058]
[1750883930649,35.4,144.76,144.72,6.9058]
[1750883931051,42.3047,144.76,144.72,6.9058]
[1750883931646,6.9048,144.75,144.72,6.9058]
[1750883932742,42.3045,144.76,144.73,6.9057]
[1750883932942,35.4,144.76,144.68,44.52911046]
[1750883933454,42.3046,144.76,144.73,6.9055]
[1750883937756,35.4,144.76,144.74,6.9052]
[1750883938357,42.3044,144.76,144.74,6.9052]
[1750883938558,35.4,144.76,144.74,6.9052]
[1750883940454,35.4,144.76,144.73,6.9055]
[1750883940656,6.9048,144.75,144.69,4.36931046]
[1750883940959,39.77185757,144.76,144.68,44.53165757]
[1750883941160,4.5046475,144.75,144.71,6.9064]
[1750883941463,6.9055,144.74,144.71,6.9064]
[1750883941864,6.9055,144.74,144.72,6.9061]
[1750883942055,11.4096475,144.75,144.68,40.1598]
[1750883942262,39.77185757,144.76,144.73,6.9054]
[1750883942760,6.905,144.75,144.73,6.9054]
[1750883943362,6.905,144.75,144.72,6.9059]
[1750883944369,6.905,144.75,144.73,6.9056]
[1750883945868,46.67635757,144.76,144.73,6.9056]
[1750883946067,39.77185757,144.76,144.68,44.53165757]
[1750883946468,6.9051,144.75,144.72,6.9059]
[1750883947072,6.9053,144.74,144.72,6.9059]
[1750883947972,6.905,144.75,144.72,6.9059]
[1750883950469,6.9053,144.74,144.72,6.9059]
[1750883951072,6.905,144.75,144.72,6.9059]
[1750883952574,6.9053,144.74,144.72,6.9059]
[1750883953073,6.905,144.75,144.73,6.9057]
[1750883954375,6.905,144.75,144.72,6.906]
[1750883956075,6.905,144.75,144.73,6.9056]
[1750883957075,42.3045,144.76,144.74,6.9051]
[1750883957576,6.9049,144.75,144.73,6.9055]
[1750883958970,6.9049,144.75,144.72,6.906]
[1750883959470,6.9049,144.75,144.68,44.53165757]
[1750883959875,6.9049,144.75,144.73,6.9057]
[1750883960278,6.9049,144.75,144.68,44.53165757]
[1750883960777,6.9054,144.74,144.72,6.906]
[1750883960971,39.77185757,144.76,144.68,44.53165757]
[1750883961377,6.9055,144.74,144.68,44.53165757]
[1750883961777,6.9055,144.74,144.72,6.9061]
[1750883963577,39.77185757,144.76,144.68,40.1598]
[1750883963779,4.37185757,144.74,144.66,4.37185757]
[1750883963976,8.89827032,144.74,144.65,37.6252]
[1750883964179,11.32157032,144.74,144.65,37.6252]
[1750883964483,6.907,144.71,144.68,6.9079]
[1750883965074,6.907,144.71,144.69,6.9076]
[1750883965271,6.9065,144.72,144.69,6.9076]
[1750883965675,6.9067,144.72,144.69,6.9076]
[1750883966383,6.9067,144.71,144.69,6.9076]
[1750883971181,5.53463517,144.73,144.68,6.9079]
[1750883971380,6.9075,144.7,144.65,37.6252]
[1750883971886,6.9075,144.7,144.67,6.9082]
[1750883972789,6.9075,144.7,144.68,6.908]
[1750883973289,6.9069,144.71,144.65,37.6252]
[1750883973685,6.9069,144.71,144.68,6.9078]
[1750883973893,6.9072,144.7,144.68,6.9078]
[1750883977294,6.9069,144.71,144.68,6.9078]
[1750883977591,39.53185757,144.72,144.66,8.55446463]
[1750883977892,42.0666,144.72,144.66,8.55446463]
[1750883978093,35.16,144.72,144.66,8.55446463]
[1750883978890,6.9074,144.7,144.66,8.55446463]
[1750883979093,39.53185757,144.72,144.66,8.55446463]
[1750883979390,4.37185757,144.68,144.63,8.55446463]
[1750883979585,6.9093,144.66,144.63,6.9102]
[1750883980390,39.53185757,144.68,144.63,6.9102]
[1750883980689,39.53185757,144.68,144.62,2.4334]
[1750883980690,4.37185757,144.64,144.59,8.55446463]
[1750883980888,4.37185757,144.64,144.58,43.71446463]
[1750883981089,39.53185757,144.64,144.59,6.9122]
[1750883981291,6.911,144.63,144.57,8.55446463]
[1750883981490,6.911,144.63,144.56,8.55446463]
[1750883982604,46.44205757,144.64,144.55,185.1872222]
[1750883983001,42.0702,144.64,144.61,6.9112]
[1750883983301,35.16,144.64,144.57,4.37185757]
[1750883983693,42.0702,144.64,144.57,12.9263222]
[1750883984301,35.16,144.64,144.59,4.37185757]
[1750883984507,46.52905757,144.67,144.59,39.53185757]
[1750883984707,6.9101,144.64,144.61,6.9111]
[1750883985005,6.9101,144.64,144.59,35.16]
[1750883985397,4.37803893,144.64,144.56,48.09250356]
[1750883985602,4.37803893,144.64,144.56,39.53803893]
[1750883985803,6.9108,144.63,144.6,6.9118]
[1750883987811,6.911,144.62,144.59,6.9122]
[1750883988209,6.9107,144.63,144.56,39.53803893]
[1750883988410,6.9107,144.63,144.6,6.9117]
[1750883988608,4.37803893,144.64,144.56,39.53803893]
[1750883989207,35.18,144.63,144.56,39.53803893]
[1750883990012,6.9112,144.62,144.59,6.9122]
[1750883990402,6.9112,144.62,144.56,39.53803893]
[1750883990605,42.0907,144.63,144.6,6.9119]
[1750883990905,35.18,144.63,144.56,39.53803893]
[1750883991110,6.911,144.62,144.59,6.9121]
[1750883992015,4.37803893,144.62,144.58,6.9127]
[1750883992312,6.9117,144.61,144.58,6.9127]
[1750883993416,6.9117,144.61,144.59,6.9124]
[1750883996918,6.9112,144.62,144.6,6.9119]
[1750883998818,35.18,144.63,144.6,6.9119]
[1750883999912,6.9112,144.62,144.6,6.9119]
[1750884000919,42.0906,144.63,144.61,6.9113]
[1750884002117,35.18,144.63,144.61,6.9113]
[1750884002421,35.18,144.63,144.56,39.53803893]
[1750884002720,35.18,144.63,144.59,6.9122]
[1750884003421,6.9115,144.61,144.59,6.9122]
[1750884007527,6.9115,144.61,144.58,6.9125]
[1750884008126,6.9115,144.61,144.59,6.9124]
[1750884009826,4.37803893,144.62,144.56,35.16]
[1750884010322,6.912,144.6,144.57,6.9133]
[1750884010731,4.37803893,144.62,144.57,6.9133]
[1750884011426,6.70803893,144.62,144.57,6.9133]
[1750884012028,6.70803893,144.62,144.58,6.9129]
[1750884012229,6.9119,144.6,144.58,6.9129]
[1750884014726,6.9119,144.6,144.57,6.9131]
[1750884014927,6.9125,144.59,144.57,6.9131]
[1750884015333,6.9121,144.6,144.57,6.9131]
[1750884016930,6.9125,144.59,144.57,6.9131]
[1750884017427,6.9125,144.59,144.54,6.85223893]
[1750884017634,6.913,144.58,144.56,6.9137]
[1750884017936,4.37803893,144.6,144.52,636.31803893]
[1750884018134,6.9135,144.57,144.54,6.9144]
[1750884018333,6.9135,144.57,144.52,35.16]
[1750884018837,6.9135,144.57,144.55,6.9142]
[1750884019444,11.29113893,144.58,144.55,6.9142]
[1750884020033,4.37803893,144.58,144.56,6.9137]
[1750884021335,11.29103893,144.58,144.56,6.9137]
[1750884021532,35.16,144.6,144.52,35.16]
[1750884021533,35.16,144.6,144.54,4.37803893]
[1750884022636,35.16,144.6,144.59,6.9124]
[1750884022846,6.9116,144.61,144.59,6.9124]
[1750884023938,35.16,144.63,144.56,48.09470639]
[1750884024138,35.16,144.63,144.57,2.2787]
[1750884024540,35.16,144.63,144.58,4.38024176]
[1750884025135,35.16,144.63,144.57,10.83316463]
[1750884025336,35.16,144.63,144.57,2.2787]
[1750884025536,6.911,144.62,144.6,6.9116]
[1750884026545,42.0707,144.63,144.61,6.9114]
[1750884027547,35.16,144.63,144.62,6.9109]
[1750884028049,2.4178,144.68,144.63,6.91]
[1750884028050,39.50024176,144.66,144.63,6.91]
[1750884028346,4.50524369,144.65,144.63,6.91]
[1750884028537,4.50524369,144.64,144.63,6.91]
[1750884028846,4.50524892,144.64,144.63,6.91]
[1750884029544,4.50602537,144.65,144.64,6.91]
[1750884029739,35.12,144.66,144.64,6.91]
[1750884030140,35.12,144.66,144.65,6.9095]
[1750884030346,6.79804176,144.68,144.6,48.05470639]
[1750884030544,4.50593895,144.67,144.62,4.38024176]
[1750884030849,4.50592357,144.68,144.67,6.9083]
[1750884031546,4.52244636,144.68,144.67,6.9083]
[1750884031750,35.12,144.69,144.62,12.93470639]
[1750884031942,11.28774176,144.7,144.62,12.93470639]
[1750884031943,37.462,144.72,144.64,4.38024176]
[1750884032148,11.42896826,144.71,144.65,35.12]
[1750884032347,6.9066,144.71,144.65,35.12]
[1750884032750,6.9066,144.71,144.68,6.9077]
[1750884032939,41.97795365,144.72,144.65,35.12]
[1750884033147,37.462,144.72,144.66,4.38024176]
[1750884033343,37.462,144.72,144.7,6.907]
[1750884033848,35.12,144.72,144.66,4.38024176]
[1750884034045,35.12,144.72,144.7,6.9069]
[1750884034250,35.12,144.72,144.66,4.38024176]
[1750884034451,35.12,144.72,144.67,6.9085]
[1750884034653,37.5913,144.72,144.67,6.9085]
[1750884034844,6.9074,144.7,144.67,6.9085]
[1750884036946,6.9079,144.69,144.66,6.9088]
[1750884037853,6.9081,144.68,144.65,6.9094]
[1750884043158,6.9086,144.67,144.65,6.9094]
[1750884043355,6.9086,144.67,144.64,6.9097]
[1750884044060,4.37371416,144.67,144.59,4.37371416]
[1750884044364,4.37371416,144.65,144.58,37.5033]
[1750884044552,6.9104,144.64,144.58,37.5033]
[1750884045351,11.28341416,144.65,144.58,37.5033]
[1750884045560,4.37371416,144.65,144.58,37.5033]
[1750884045956,6.9102,144.64,144.61,6.911]
[1750884049066,4.37371416,144.63,144.56,2.4617]
[1750884049266,4.37371416,144.61,144.54,121.07660615]
[1750884049459,6.9123,144.6,144.54,121.07660615]
[1750884050171,11.28561416,144.61,144.54,121.07660615]
[1750884050670,11.28561416,144.61,144.58,6.9127]
[1750884051171,6.912,144.6,144.58,6.9127]
[1750884051364,6.912,144.6,144.57,6.9132]
[1750884051673,6.912,144.6,144.54,121.07660615]
[1750884051872,11.28531416,144.61,144.54,121.07660615]
[1750884052073,11.28531416,144.61,144.58,6.9127]
[1750884052277,4.37371416,144.61,144.58,6.9127]
[1750884052872,11.28541416,144.61,144.58,6.9127]
[1750884053571,6.912,144.6,144.58,6.9127]
[1750884054972,11.28551416,144.61,144.58,6.9127]
[1750884055177,4.37371416,144.61,144.54,121.07660615]
[1750884055874,11.28551416,144.61,144.58,6.9126]
[1750884058474,4.37371416,144.61,144.59,6.9123]
[1750884058875,4.37371416,144.61,144.54,121.07660615]
[1750884059068,11.28531416,144.61,144.58,6.9127]
[1750884061285,11.28531416,144.61,144.59,6.9125]
[1750884061783,9.2745,144.62,144.55,4.37371416]
[1750884061980,4.37371416,144.63,144.55,4.37371416]
[1750884062478,6.9113,144.62,144.55,4.37371416]
[1750884062685,4.37371416,144.63,144.55,4.37371416]
[1750884063383,6.62781416,144.63,144.55,4.37371416]
[1750884063776,6.9123,144.6,144.57,6.9131]
[1750884065479,6.9118,144.61,144.58,6.9129]
[1750884066388,6.9118,144.61,144.55,4.37371416]
[1750884067084,6.912,144.6,144.58,6.9127]
[1750884067881,6.62781416,144.63,144.58,6.9127]
[1750884067882,6.9117,144.61,144.58,6.9127]
[1750884069384,6.9117,144.61,144.59,6.9125]
[1750884070287,6.62781416,144.63,144.59,6.9125]
[1750884070288,6.9113,144.62,144.59,6.9125]
[1750884071784,6.9113,144.62,144.6,6.9119]
[1750884073386,6.9113,144.62,144.59,6.9122]
[1750884074491,6.9115,144.61,144.59,6.9122]
[1750884075394,6.9113,144.62,144.59,6.9122]
[1750884075597,6.62781416,144.63,144.59,6.9122]
[1750884075896,6.9118,144.61,144.58,6.9127]
[1750884076496,6.912,144.6,144.58,6.9127]
[1750884077702,11.28541416,144.61,144.58,6.9127]
[1750884078090,4.37371416,144.61,144.56,2.2704]
[1750884078692,41.9912,144.62,144.59,6.9122]
[1750884081099,6.9116,144.61,144.59,6.9122]
[1750884082903,6.9116,144.61,144.58,6.9127]
[1750884086301,11.2919259,144.61,144.58,6.9127]
[1750884086896,11.2919259,144.61,144.55,8.53491216]
[1750884088105,6.912,144.6,144.58,6.9127]
[1750884088307,9.71586478,144.6,144.58,6.9127]
[1750884094114,9.71586478,144.6,144.59,6.9125]
[1750884094312,14.24403492,144.6,144.59,6.9125]
[1750884094512,14.24403447,144.6,144.59,6.9125]
[1750884095113,7.33203447,144.6,144.59,6.9125]
[1750884096015,4.52816969,144.6,144.59,6.9125]
[1750884096318,37.84386478,144.65,144.59,11.33877694]
[1750884096504,2.80386478,144.63,144.59,11.33736926]
[1750884096698,7.3306421,144.62,144.58,50.96146926]
[1750884096902,4.528185,144.61,144.6,6.9117]
[1750884097103,2.8024571,144.62,144.6,6.9117]
[1750884097507,2.8024571,144.62,144.61,6.9115]
[1750884097708,7.32889745,144.62,144.61,6.9115]
[1750884098000,4.52644035,144.62,144.61,6.9115]
[1750884098414,35.04,144.65,144.63,6.9101]
[1750884098608,4.52640804,144.64,144.61,2.8024571]
[1750884098909,4.52640804,144.63,144.62,2.8024571]
[1750884099819,35.04,144.65,144.64,6.9101]
[1750884100115,39.5630474,144.65,144.64,6.9101]
[1750884100817,46.4726474,144.65,144.63,6.9103]
[1750884101012,4.5230474,144.64,144.63,6.9103]
[1750884101317,35.04,144.65,144.64,6.9101]
[1750884101521,4.52286853,144.65,144.6,12.9121558]
[1750884101815,6.9089,144.67,144.6,12.9121558]
[1750884102005,11.43196773,144.66,144.64,6.9098]
[1750884102201,4.52286773,144.65,144.64,6.9098]
[1750884104114,9.39598162,144.65,144.64,6.9098]
[1750884106117,9.39342209,144.65,144.64,6.9098]
[1750884106714,6.9092,144.66,144.64,6.9098]
[1750884107216,16.31872198,144.65,144.62,6.9108]
[1750884107416,6.9101,144.65,144.62,6.9108]
[1750884107713,16.31917594,144.64,144.61,6.9114]
[1750884107906,6.9101,144.64,144.61,6.9114]
[1750884108408,6.9106,144.63,144.61,6.9114]
[1750884112417,6.9111,144.62,144.6,6.9118]
[1750884112823,4.87470595,144.63,144.6,6.9118]
[1750884113013,39.41724364,144.64,144.6,6.9118]
[1750884113214,11.78559437,144.63,144.6,6.9118]
[1750884113414,6.9109,144.63,144.6,6.9118]
[1750884114222,6.9111,144.62,144.6,6.9118]
[1750884115423,11.43541519,144.63,144.6,6.9118]
[1750884115721,39.41724364,144.64,144.61,6.9115]
[1750884115921,4.52461519,144.63,144.61,6.9115]
[1750884116117,39.41724364,144.64,144.61,6.9115]
[1750884116318,4.52491392,144.63,144.62,6.911]
[1750884117625,41.9503,144.64,144.62,6.911]
[1750884117814,4.52470532,144.63,144.62,6.911]
[1750884118527,41.9503,144.64,144.62,6.911]
[1750884120226,6.9106,144.63,144.61,6.9112]
[1750884122126,44.75249961,144.64,144.62,6.911]
[1750884122528,6.9108,144.63,144.61,6.9113]
[1750884123226,2.80219961,144.63,144.58,43.57491216]
[1750884123425,2.80219961,144.61,144.56,8.53491216]
[1750884123629,2.80219961,144.61,144.56,2.80219961]
[1750884123931,9.71399961,144.61,144.59,6.9122]
[1750884130042,6.912,144.6,144.58,6.9127]
[1750884130231,2.80219961,144.59,144.55,48.69851177]
[1750884130435,2.80219961,144.59,144.55,37.76219961]
[1750884131239,9.71489961,144.59,144.56,6.9136]
[1750884131942,9.71489961,144.59,144.57,6.9134]
[1750884132145,6.9127,144.59,144.57,6.9134]
[1750884133042,44.69439961,144.6,144.58,6.9128]
[1750884133247,34.98,144.6,144.58,6.9128]
[1750884133740,34.98,144.6,144.59,6.9125]
[1750884133938,39.7752,144.63,144.59,6.9125]
[1750884134147,39.7752,144.63,144.58,2.80219961]
[1750884134148,4.51894275,144.62,144.58,2.80219961]
[1750884134454,6.9113,144.62,144.6,6.9118]
[1750884136454,6.9115,144.61,144.59,6.9123]
[1750884136657,4.50737596,144.62,144.59,6.9123]
[1750884136953,34.98,144.63,144.59,6.9123]
[1750884137153,11.4185732,144.62,144.6,6.912]
[1750884137343,6.9112,144.62,144.6,6.912]
[1750884139255,41.8908,144.63,144.6,6.912]
[1750884140051,41.8908,144.63,144.61,6.9114]
[1750884140354,41.8908,144.63,144.56,12.91424843]
[1750884140855,41.8908,144.63,144.6,6.9118]
[1750884141748,6.9111,144.62,144.6,6.9118]
[1750884142148,39.35933627,144.63,144.59,6.9123]
[1750884142357,6.9118,144.61,144.56,4.37933627]
[1750884142852,6.9118,144.61,144.58,6.9126]
[1750884143949,39.35933627,144.63,144.57,6.9132]
[1750884144153,4.38097298,144.61,144.57,6.9132]
[1750884144544,6.9125,144.59,144.57,6.9132]
[1750884145056,6.9125,144.59,144.56,6.9137]
[1750884147148,6.913,144.58,144.56,6.9137]
[1750884147346,4.52444556,144.6,144.54,85.97660615]
[1750884147648,6.9138,144.57,144.54,85.97660615]
[1750884147849,6.9138,144.57,144.54,6.9145]
[1750884148755,6.9138,144.57,144.55,6.9143]
[1750884148954,6.9132,144.58,144.53,4.38097298]
[1750884149757,6.9132,144.58,144.55,6.9141]
[1750884150553,34.9,144.59,144.53,4.38097298]
[1750884151053,34.9,144.62,144.57,4.38097298]
[1750884151449,34.9,144.62,144.59,6.9122]
[1750884151755,4.50908044,144.61,144.59,6.9122]
[1750884152054,34.9,144.62,144.59,6.9122]
[1750884152254,6.9115,144.61,144.59,6.9122]
[1750884152849,6.912,144.6,144.55,4.38021608]
[1750884153853,6.9127,144.59,144.56,6.9137]
[1750884154057,8.88965384,144.61,144.53,4.38021608]
[1750884154354,6.9133,144.58,144.53,4.38021608]
[1750884155452,6.9133,144.58,144.56,6.9139]
[1750884155853,6.9127,144.59,144.53,4.38021608]
[1750884156161,37.2484,144.62,144.55,4.38021608]
[1750884156456,6.912,144.6,144.55,4.38021608]
[1750884156656,37.2484,144.62,144.55,4.38021608]
[1750884156858,4.52199665,144.61,144.55,4.38021608]
[1750884157155,6.9119,144.61,144.58,6.9126]
[1750884158049,6.9119,144.61,144.59,6.9124]
[1750884158249,6.9119,144.61,144.55,4.37998632]
[1750884159055,6.9119,144.61,144.58,6.9126]
[1750884160561,11.43503701,144.6,144.58,6.9126]
[1750884160762,6.912,144.6,144.58,6.9126]
[1750884162056,41.62838632,144.62,144.5,611.0532]
[1750884162269,8.90332547,144.61,144.52,4.37998632]
[1750884162455,4.52333915,144.6,144.52,4.37998632]
[1750884162656,11.43603915,144.59,144.56,6.9137]
[1750884162859,6.9127,144.59,144.56,6.9137]
[1750884163263,6.913,144.58,144.56,6.9137]
[1750884166567,6.913,144.58,144.55,6.9142]
[1750884170866,6.913,144.58,144.54,8.59197436]
[1750884171369,6.913,144.58,144.55,6.9143]
[1750884172168,6.9134,144.57,144.55,6.9143]
[1750884175568,6.9134,144.57,144.56,6.9139]
[1750884175774,6.9134,144.57,144.54,8.59197436]
[1750884176274,6.9134,144.57,144.55,6.914]
[1750884176474,6.9132,144.58,144.54,8.59197436]